bitfinex/quotes_BTCUSD_20251019
["timestamp","ask_amount","ask_price","bid_price","bid_amount"]
[1760866880314,0.00014925,107270.0,107260.0,0.06485497]
[1760866880479,0.00014925,107270.0,107260.0,0.27520469]
[1760866880688,0.00014925,107270.0,107260.0,0.38891407]
[1760866880897,5.00014925,107270.0,107260.0,0.46578216]
[1760866881099,5.00014925,107270.0,107260.0,0.38825506]
[1760866881444,5.68659466,107270.0,107260.0,0.28308384]
[1760866881598,5.52659466,107270.0,107260.0,0.34179658]
[1760866881799,5.52659466,107270.0,107260.0,0.02425968]
[1760866881800,5.18659466,107270.0,107260.0,0.02425968]
[1760866882213,5.18659466,107270.0,107250.0,0.02425968]
[1760866882414,5.00014925,107270.0,107260.0,0.03234448]
[1760866882619,0.00014925,107270.0,107260.0,0.04315799]
[1760866882775,0.00014925,107270.0,107260.0,0.0597197]
[1760866882975,0.00014925,107270.0,107260.0,0.14622059]
[1760866883244,0.00014925,107270.0,107260.0,0.27603538]
[1760866883451,0.00014925,107270.0,107260.0,0.09575232]
[1760866883609,0.00014925,107270.0,107260.0,0.08956006]
[1760866884006,0.00014925,107270.0,107260.0,0.72425151]
[1760866884234,0.00014925,107270.0,107260.0,0.91846927]
[1760866884465,0.01376114,107270.0,107260.0,0.93669465]
[1760866884660,0.01376114,107270.0,107260.0,0.98521137]
[1760866884892,0.01376114,107270.0,107260.0,0.93669465]
[1760866885101,0.19570673,107350.0,107330.0,0.00837523]
[1760866885302,5.09456021,107350.0,107340.0,0.00837523]
[1760866885429,5.28086668,107350.0,107340.0,0.00837523]
[1760866885638,5.18632383,107340.0,107330.0,0.00999999]
[1760866885857,5.18634119,107330.0,107320.0,0.00837523]
[1760866886084,5.52634119,107330.0,107320.0,0.09441088]
[1760866886486,0.34,107300.0,107280.0,0.01837522]
[1760866886816,5.18642803,107280.0,107270.0,0.01837522]
[1760866886995,5.18642803,107280.0,107260.0,0.00999999]
[1760866886996,5.52644541,107270.0,107260.0,0.00999999]
[1760866887173,0.5264628,107260.0,107240.0,0.00837523]
[1760866887374,0.18648018,107250.0,107240.0,0.01837522]
[1760866887631,0.18648018,107250.0,107240.0,0.11328421]
[1760866887776,0.34,107260.0,107250.0,0.01837522]
[1760866887984,0.34,107260.0,107250.0,0.01971581]
[1760866888451,0.34,107260.0,107250.0,0.01837522]
[1760866888606,0.34,107260.0,107250.0,0.1127861]
[1760866888823,0.19571294,107300.0,107260.0,0.18645787]
[1760866889016,0.18641066,107290.0,107280.0,0.01837522]
[1760866889219,5.19571294,107300.0,107290.0,0.00999999]
[1760866889628,0.52641651,107290.0,107280.0,0.00999999]
[1760866889792,5.52641651,107290.0,107280.0,0.00999999]
[1760866889995,0.52642803,107280.0,107260.0,0.01837522]
[1760866890208,5.52644541,107270.0,107260.0,0.00049811]
[1760866890615,5.62085629,107270.0,107260.0,0.00049811]
[1760866892151,5.34,107270.0,107260.0,0.00049811]
[1760866892438,5.34,107270.0,107260.0,0.0104981]
[1760866892439,5.52644541,107270.0,107260.0,0.0104981]
[1760866892641,5.52644541,107270.0,107260.0,0.00049811]
[1760866892845,5.52644541,107270.0,107260.0,0.0104981]
[1760866894033,5.52644541,107270.0,107260.0,0.00049811]
[1760866894483,5.62085629,107270.0,107260.0,0.0104981]
[1760866895125,5.62085629,107270.0,107260.0,0.00049811]
[1760866897739,5.62085629,107270.0,107260.0,1e-08]
[1760866897886,5.62248105,107270.0,107260.0,1e-08]
[1760866900548,5.62248105,107270.0,107240.0,1e-08]
[1760866900549,5.52810494,107250.0,107240.0,1e-08]
[1760866900763,5.62251582,107250.0,107240.0,1e-08]
[1760866901613,5.63771637,107250.0,107240.0,1e-08]
[1760866901815,5.62089106,107250.0,107240.0,1e-08]
[1760866902062,5.52654976,107210.0,107200.0,0.00999999]
[1760866902286,5.52654976,107210.0,107200.0,0.01014936]
[1760866903996,5.54896062,107210.0,107200.0,0.01014936]
[1760866904411,5.54896062,107210.0,107200.0,0.00014937]
[1760866904641,5.54896062,107210.0,107200.0,0.01014936]
[1760866905492,0.18653236,107220.0,107210.0,0.01837522]
[1760866905697,0.01704875,107220.0,107210.0,0.1127861]
[1760866905906,5.5358407,107230.0,107220.0,0.00999999]
[1760866906117,5.18654976,107210.0,107200.0,0.0085246]
[1760866906323,0.18654976,107210.0,107200.0,0.01014936]
[1760866906510,5.56638737,107210.0,107200.0,0.01014936]
[1760866907294,0.01712843,107210.0,107200.0,0.78391356]
[1760866907671,0.19582887,107270.0,107250.0,0.00999999]
[1760866907672,0.21899186,107260.0,107250.0,0.00999999]
[1760866907836,5.23621183,107260.0,107250.0,0.01837522]
[1760866908060,0.01721997,107260.0,107250.0,0.01837522]
[1760866908220,0.20368277,107260.0,107250.0,0.01837522]
[1760866908420,0.5264628,107260.0,107250.0,0.01837522]
[1760866908822,0.1864628,107260.0,107250.0,0.01837522]
[1760866909045,5.30417445,107260.0,107250.0,0.01837522]
[1760866909254,5.52649757,107240.0,107230.0,0.01837522]
[1760866909424,0.34,107240.0,107230.0,0.1127861]
[1760866909845,0.18648202,107250.0,107240.0,0.01837522]
[1760866910243,0.18648202,107250.0,107240.0,0.00837523]
[1760866910475,0.52648202,107250.0,107240.0,0.01837522]
[1760866910680,0.18649757,107240.0,107230.0,0.1127861]
[1760866911052,0.02330077,107260.0,107250.0,0.01837522]
[1760866911232,5.20976357,107260.0,107250.0,0.01837522]
[1760866911408,5.34,107260.0,107250.0,0.01837522]
[1760866911611,0.34,107260.0,107250.0,0.1127861]
[1760866912035,0.5264628,107260.0,107250.0,0.1127861]
[1760866912175,0.34,107260.0,107250.0,0.1127861]
[1760866912408,0.00146507,107270.0,107260.0,0.2410203]
[1760866912647,0.00146507,107270.0,107260.0,0.78365983]
[1760866912648,0.00161433,107270.0,107260.0,0.78365983]
[1760866914584,0.00161433,107270.0,107260.0,0.33543118]
[1760866914783,0.00161433,107270.0,107260.0,0.79365983]
[1760866915042,0.00161433,107270.0,107260.0,0.80365983]
[1760866915260,0.00161433,107270.0,107260.0,0.35543118]
[1760866915472,0.00161433,107270.0,107260.0,0.80365983]
[1760866915673,0.00161433,107270.0,107260.0,0.15896838]
[1760866915873,0.00161433,107270.0,107260.0,0.2992489]
[1760866916089,0.00161433,107270.0,107260.0,0.1127861]
[1760866916299,0.00161433,107270.0,107260.0,0.10278611]
[1760866916729,0.00161433,107270.0,107260.0,0.1127861]
[1760866916931,0.00161433,107270.0,107260.0,0.74747755]
[1760866917271,0.00161433,107270.0,107260.0,0.33543118]
[1760866917482,0.00161433,107270.0,107260.0,0.43599118]
[1760866917874,0.00161433,107270.0,107260.0,0.88421983]
[1760866918101,0.00161433,107270.0,107260.0,0.43599118]
[1760866918509,0.00161433,107270.0,107260.0,0.88421983]
[1760866919552,0.00161433,107270.0,107260.0,0.43599118]
[1760866919749,0.00161433,107270.0,107260.0,0.89421983]
[1760866920784,5.19573477,107340.0,107330.0,0.00837523]
[1760866921011,5.19623278,107340.0,107330.0,0.00837523]
[1760866921311,5.2186456,107340.0,107330.0,0.01837522]
[1760866921523,5.19623278,107340.0,107330.0,0.01837522]
[1760866921733,5.53623278,107340.0,107330.0,0.01837522]
[1760866922141,0.52634119,107330.0,107320.0,0.01837522]
[1760866922336,0.52634119,107330.0,107310.0,0.01737523]
[1760866922337,0.18635855,107320.0,107310.0,0.01737523]
[1760866922513,0.52635855,107320.0,107310.0,0.01737523]
[1760866922678,0.52635855,107320.0,107310.0,0.01837522]
[1760866922880,0.52637592,107310.0,107300.0,0.01837522]
[1760866923992,0.18639328,107300.0,107290.0,0.00999999]
[1760866924219,0.52641066,107290.0,107280.0,0.01837522]
[1760866924538,0.19567647,107320.0,107300.0,0.01837522]
[1760866924848,0.19565824,107330.0,107310.0,0.09441088]
[1760866924992,5.0,107330.0,107320.0,0.00837523]
[1760866925182,0.1868392,107330.0,107320.0,0.1127861]
[1760866925387,0.1868392,107330.0,107320.0,0.11309823]
[1760866925872,0.5268392,107330.0,107320.0,0.11309823]
[1760866926191,0.1868392,107330.0,107320.0,0.11309823]
[1760866926593,0.5268392,107330.0,107320.0,0.11309823]
[1760866926844,0.5268392,107330.0,107320.0,0.1127861]
[1760866928344,0.34049801,107330.0,107320.0,0.29914465]
[1760866928546,0.00049801,107330.0,107320.0,0.78355558]
[1760866928752,0.00049801,107330.0,107320.0,0.33532693]
[1760866928973,0.00049801,107330.0,107320.0,0.78355558]
[1760866929174,0.00049801,107330.0,107320.0,0.14896838]
[1760866929517,0.00049801,107330.0,107320.0,0.33532693]
[1760866930010,0.00049801,107330.0,107320.0,0.78355558]
[1760866930429,0.00049801,107330.0,107320.0,0.33532693]
[1760866930605,0.00049801,107330.0,107320.0,0.88367558]
[1760866930811,0.00049801,107330.0,107320.0,0.33532693]
[1760866931012,0.00049801,107330.0,107320.0,0.78355558]
[1760866931216,0.00049801,107330.0,107320.0,0.43540693]
[1760866931743,0.01117737,107360.0,107350.0,0.20468169]
[1760866931950,0.0113267,107360.0,107350.0,0.46137384]
[1760866932104,0.0113267,107360.0,107350.0,0.36133384]
[1760866932290,0.0113267,107360.0,107350.0,0.46141384]
[1760866932493,0.01454216,107360.0,107350.0,0.27510737]
[1760866932709,0.01454216,107360.0,107350.0,0.46141384]
[1760866933220,0.01454216,107360.0,107350.0,0.90964249]
[1760866933628,0.01454216,107360.0,107350.0,0.44435485]
[1760866933845,0.01454216,107360.0,107350.0,0.8925835]
[1760866934045,0.01454216,107360.0,107350.0,0.8025035]
[1760866934248,0.01454216,107360.0,107350.0,0.34589962]
[1760866934453,0.01454216,107360.0,107350.0,0.1217861]
[1760866935001,0.01454216,107360.0,107350.0,0.75632122]
[1760866935215,0.01454216,107360.0,107350.0,0.7835035]
[1760866935426,0.01454216,107360.0,107350.0,0.44439485]
[1760866935628,0.01454216,107360.0,107350.0,0.8926235]
[1760866935847,0.01454216,107360.0,107350.0,0.30809257]
[1760866936052,0.01454216,107360.0,107350.0,0.40821257]
[1760866936260,0.01454216,107360.0,107350.0,0.1217861]
[1760866936477,0.20083128,107360.0,107350.0,0.11178611]
[1760866936666,0.20083128,107360.0,107350.0,0.1217861]
[1760866937404,0.20083128,107360.0,107350.0,0.01737523]
[1760866937643,0.00048,107380.0,107370.0,0.18627177]
[1760866937807,0.00048,107380.0,107370.0,1.29559517]
[1760866938007,0.00048,107380.0,107370.0,0.1127861]
[1760866938252,0.00048,107380.0,107350.0,0.009]
[1760866938412,0.18673442,107380.0,107370.0,0.01837522]
[1760866938615,0.00048,107380.0,107370.0,0.00837523]
[1760866938849,0.00048,107380.0,107370.0,0.01837522]
[1760866939003,0.18673442,107380.0,107370.0,0.1127861]
[1760866940101,0.18673442,107380.0,107370.0,0.10278611]
[1760866940287,0.18673442,107380.0,107370.0,0.1127861]
[1760866940730,0.18673442,107380.0,107370.0,0.10278611]
[1760866940896,5.52673442,107380.0,107370.0,0.01837522]
[1760866941097,5.52673442,107380.0,107370.0,0.00999999]
[1760866941890,5.52673442,107380.0,107360.0,0.00837523]
[1760866941891,0.18627177,107370.0,107360.0,0.00837523]
[1760866942103,0.19565572,107340.0,107330.0,0.00837523]
[1760866942306,0.19565572,107340.0,107330.0,0.10328412]
[1760866942632,0.34,107350.0,107340.0,0.00837523]
[1760866942875,0.34,107350.0,107340.0,0.10278611]
[1760866942876,0.52630647,107350.0,107340.0,0.10278611]
[1760866942999,5.52630647,107350.0,107340.0,0.10278611]
[1760866943207,0.52630647,107350.0,107340.0,0.10278611]
[1760866943396,0.34,107350.0,107340.0,0.10278611]
[1760866943596,0.52630647,107350.0,107340.0,0.10278611]
[1760866944221,0.52632383,107340.0,107330.0,0.00049801]
[1760866944417,0.52632383,107340.0,107330.0,0.00887324]
[1760866948433,0.52794751,107340.0,107330.0,0.01033683]
[1760866950231,5.18635855,107320.0,107310.0,0.009]
[1760866950435,0.18685586,107320.0,107310.0,0.009]
[1760866951440,0.18642073,107290.0,107270.0,0.63467399]
[1760866951640,0.18642073,107290.0,107280.0,0.55163953]
[1760866951846,0.18642073,107290.0,107280.0,0.10341088]
[1760866952604,0.52642073,107290.0,107280.0,0.10341088]
[1760866952858,0.52642073,107290.0,107280.0,0.009]
[1760866953083,0.54866251,107290.0,107280.0,0.009]
[1760866953306,5.54866251,107290.0,107280.0,0.009]
[1760866953518,0.18647573,107260.0,107240.0,0.28665656]
[1760866953626,0.18648175,107250.0,107240.0,0.45722865]
[1760866953825,0.18648175,107250.0,107240.0,0.55163953]
[1760866954050,0.18648175,107250.0,107240.0,0.10341088]
[1760866954507,0.52648175,107250.0,107240.0,0.01759145]
[1760866954734,0.52648175,107250.0,107240.0,0.00914933]
[1760866954908,5.52648175,107250.0,107240.0,0.00014933]
[1760866955085,5.62089263,107250.0,107240.0,1e-08]
[1760866955518,5.62251772,107250.0,107240.0,1e-08]
[1760866955723,5.62089263,107250.0,107240.0,1e-08]
[1760866956102,5.62251782,107250.0,107240.0,1e-08]
[1760866956879,5.52648175,107250.0,107240.0,1e-08]
[1760866957088,5.62089263,107250.0,107240.0,1e-08]
[1760866957709,5.63552079,107250.0,107240.0,1e-08]
[1760866957923,5.62089263,107250.0,107240.0,1e-08]
[1760866958126,5.63552079,107250.0,107240.0,1e-08]
[1760866958631,5.64552078,107250.0,107240.0,1e-08]
[1760866958837,5.65552077,107250.0,107240.0,1e-08]
[1760866959246,5.63552079,107250.0,107240.0,1e-08]
[1760866959449,5.29552079,107250.0,107240.0,1e-08]
[1760866959875,5.63552079,107250.0,107240.0,1e-08]
[1760866960086,5.54110991,107250.0,107240.0,1e-08]
[1760866960291,5.52648175,107250.0,107240.0,1e-08]
[1760866961209,5.62089263,107250.0,107240.0,1e-08]
[1760866961851,5.63552094,107250.0,107240.0,1e-08]
[1760866962198,5.64552093,107250.0,107240.0,1e-08]
[1760866963192,5.65552092,107250.0,107240.0,1e-08]
[1760866964782,5.65807758,107250.0,107240.0,1e-08]
[1760866965191,5.63605872,107250.0,107240.0,1e-08]
[1760866965603,5.64605871,107250.0,107240.0,1e-08]
[1760866966340,5.68224099,107250.0,107240.0,1e-08]
[1760866966537,5.68224099,107250.0,107160.0,0.0002]
[1760866966538,0.52661938,107170.0,107160.0,0.0002]
[1760866966745,0.52661938,107170.0,107160.0,0.09511103]
[1760866966955,0.52661938,107170.0,107160.0,0.0979751]
[1760866968234,0.54956477,107170.0,107160.0,0.0979751]
[1760866968774,0.52661938,107170.0,107160.0,0.0979751]
[1760866969075,0.54897742,107170.0,107160.0,0.0979751]
[1760866973964,0.20897742,107170.0,107160.0,0.0979751]
[1760866975952,0.54897742,107170.0,107160.0,0.0979751]
[1760866976179,0.54897742,107170.0,107160.0,0.00356422]
[1760866978108,5.54897742,107170.0,107160.0,0.00356422]
[1760866978586,5.5506038,107170.0,107160.0,0.00356422]
[1760866978969,5.54897742,107170.0,107160.0,0.00356422]
[1760866979183,5.5266368,107160.0,107150.0,0.0002]
[1760866979314,5.5266368,107160.0,107130.0,0.0002]
[1760866979315,5.52667164,107140.0,107130.0,0.0002]
[1760866979650,0.52667164,107140.0,107130.0,0.0002]
[1760866980976,5.52667164,107140.0,107130.0,0.0002]
[1760866981183,0.18665422,107150.0,107130.0,0.54283953]
[1760866981409,0.18665422,107150.0,107140.0,0.54263953]
[1760866981624,0.18665422,107150.0,107140.0,0.09441088]
[1760866982677,0.18667164,107140.0,107130.0,0.0002]
[1760866982882,0.18667164,107140.0,107130.0,0.09461088]
[1760866983848,0.18667164,107140.0,107130.0,0.54283953]
[1760866984660,0.18665422,107150.0,107130.0,1.17775724]
[1760866984863,0.19809165,107160.0,107140.0,0.83787014]
[1760866985151,0.18876417,107160.0,107150.0,0.44822865]
[1760866985376,0.18876417,107160.0,107150.0,0.09441088]
[1760866985782,0.18876417,107160.0,107150.0,0.54263953]
[1760866985988,0.00212301,107160.0,107150.0,0.72929375]
[1760866986220,0.00212301,107160.0,107150.0,0.54263953]
[1760866986425,0.00212301,107160.0,107150.0,0.72929375]
[1760866986639,0.00049648,107160.0,107150.0,0.54263953]
[1760866987090,0.18713328,107160.0,107150.0,0.09441088]
[1760866987224,0.18713328,107160.0,107150.0,0.54263953]
[1760866987625,0.00049648,107160.0,107150.0,0.72929375]
[1760866987826,0.00049648,107160.0,107150.0,0.76547603]
[1760866988438,0.18713328,107160.0,107150.0,0.13059316]
[1760866988690,0.00049648,107160.0,107150.0,0.86503603]
[1760866988891,0.18713328,107160.0,107150.0,0.67838181]
[1760866989130,0.18713328,107160.0,107150.0,0.23015316]
[1760866989321,0.18713328,107160.0,107150.0,0.67838181]
[1760866989554,0.18713328,107160.0,107150.0,0.23015316]
[1760866989732,0.18713328,107160.0,107150.0,0.57882181]
[1760866989943,0.18713328,107160.0,107150.0,0.23007316]
[1760866990446,0.18713328,107160.0,107150.0,0.19424905]
[1760866990645,0.00049648,107160.0,107150.0,0.41708555]
[1760866991075,0.00049648,107160.0,107150.0,0.8653142]
[1760866991277,0.18713328,107160.0,107150.0,0.67865998]
[1760866991479,0.00049648,107160.0,107150.0,0.8653142]
[1760866991824,0.18713328,107160.0,107150.0,0.67865998]
[1760866992066,0.00049648,107160.0,107150.0,0.8653142]
[1760866992629,0.55870822,107180.0,107160.0,0.03618228]
[1760866992630,0.18661938,107170.0,107160.0,0.03618228]
[1760866992830,0.18661938,107170.0,107160.0,0.67833107]
[1760866993034,0.18661938,107170.0,107160.0,0.09456014]
[1760866993236,0.52661938,107170.0,107160.0,0.09479418]
[1760866993458,0.52661938,107170.0,107160.0,0.19411418]
[1760866993671,0.52661938,107170.0,107160.0,0.19388014]
[1760866994066,0.18661938,107170.0,107160.0,0.23006242]
[1760866994431,0.55870822,107180.0,107160.0,0.86492729]
[1760866994732,0.55870822,107180.0,107170.0,0.09441088]
[1760866995453,0.18661938,107170.0,107160.0,0.00014926]
[1760866995590,0.18661938,107170.0,107160.0,0.19380014]
[1760866995969,0.18661938,107170.0,107160.0,0.64202879]
[1760866997235,0.18661938,107170.0,107160.0,0.19380014]
[1760866999784,0.52661938,107170.0,107160.0,0.19360014]
[1760867000687,0.52661938,107170.0,107160.0,0.00014926]
[1760867000893,0.52661938,107170.0,107160.0,0.09914926]
[1760867001241,0.52661938,107170.0,107160.0,0.00014926]
[1760867001440,5.52661938,107170.0,107160.0,0.00014926]
[1760867001806,5.54408686,107170.0,107160.0,0.00014926]
[1760867003870,0.54408686,107170.0,107160.0,0.09456014]
[1760867004087,0.52661938,107170.0,107160.0,0.09456014]
[1760867004344,0.18661938,107170.0,107160.0,0.09456014]
[1760867004544,0.52661938,107170.0,107160.0,0.09456014]
[1760867007127,0.21835473,107180.0,107160.0,1.21383652]
[1760867007268,0.20902464,107180.0,107170.0,0.64151953]
[1760867007467,0.18660197,107180.0,107170.0,0.64151953]
[1760867008125,0.18660197,107180.0,107170.0,0.67770181]
[1760867008354,0.19739775,107190.0,107170.0,0.82813891]
[1760867008535,0.19593119,107190.0,107180.0,0.44822865]
[1760867008701,0.19593119,107190.0,107180.0,0.54263953]
[1760867008901,0.19593119,107190.0,107180.0,0.09441088]
[1760867009144,0.54960114,107200.0,107180.0,0.54263953]
[1760867009345,0.54960114,107200.0,107190.0,0.0988]
[1760867009550,0.54960114,107200.0,107190.0,0.64143953]
[1760867009787,5.54960114,107200.0,107190.0,0.19321088]
[1760867009977,5.54960114,107200.0,107190.0,0.09876]
[1760867010338,0.54960114,107200.0,107190.0,0.09876]
[1760867010733,0.18660197,107180.0,107160.0,0.03633154]
[1760867010934,0.18661938,107170.0,107160.0,0.44837791]
[1760867011116,0.18661938,107170.0,107160.0,0.54713791]
[1760867011316,0.18661938,107170.0,107160.0,0.00014926]
[1760867011664,0.18661938,107170.0,107160.0,0.19332014]
[1760867012044,0.18661938,107170.0,107160.0,0.09456014]
[1760867012257,0.18661938,107170.0,107160.0,0.19332014]
[1760867012620,0.52661938,107170.0,107160.0,0.09456014]
[1760867012795,0.52661938,107170.0,107160.0,0.19328014]
[1760867013231,0.52661938,107170.0,107160.0,0.09456014]
[1760867013468,0.52661938,107170.0,107160.0,0.19324014]
[1760867014438,0.52661938,107170.0,107160.0,0.19320014]
[1760867014660,0.52661938,107170.0,107160.0,0.00014926]
[1760867014861,0.52661938,107170.0,107160.0,0.09878926]
[1760867015084,0.52661938,107170.0,107160.0,0.00014926]
[1760867015283,0.52661938,107170.0,107160.0,0.09874926]
[1760867016586,0.52661938,107170.0,107160.0,0.09870926]
[1760867017644,0.52661938,107170.0,107160.0,0.00014926]
[1760867018930,5.52661938,107170.0,107160.0,0.00014926]
[1760867019229,5.52824579,107170.0,107160.0,0.00014926]
[1760867020201,5.34162641,107170.0,107160.0,0.00014926]
[1760867020406,5.52824579,107170.0,107160.0,0.00014926]
[1760867020627,5.52661938,107170.0,107160.0,0.00014926]
[1760867021391,5.18661938,107170.0,107160.0,0.00014926]
[1760867021591,5.18661938,107170.0,107160.0,0.09456014]
[1760867021592,0.18661938,107170.0,107160.0,0.09456014]
[1760867021797,0.52661938,107170.0,107160.0,0.54278879]
[1760867022222,0.52661938,107170.0,107160.0,0.09456014]
[1760867023276,0.52661938,107170.0,107150.0,0.00035817]
[1760867023277,0.1866368,107160.0,107150.0,0.00035817]
[1760867023492,0.1866368,107160.0,107150.0,0.54729619]
[1760867023694,0.5266368,107160.0,107150.0,0.09906754]
[1760867024110,0.5266368,107160.0,107150.0,0.09902754]
[1760867024666,0.5266368,107160.0,107150.0,0.00050754]
[1760867024859,0.5266368,107160.0,107150.0,0.09902754]
[1760867025870,0.1866368,107160.0,107150.0,0.09902754]
[1760867026079,0.1866368,107160.0,107150.0,0.09898754]
[1760867026480,0.18824579,107170.0,107150.0,0.64162707]
[1760867026684,0.1866368,107160.0,107150.0,0.64162707]
[1760867027535,0.1866368,107160.0,107150.0,0.09491842]
[1760867027753,0.1866368,107160.0,107150.0,0.19335842]
[1760867027947,0.1866368,107160.0,107150.0,0.09491842]
[1760867028147,0.1866368,107160.0,107150.0,0.00050754]
[1760867028349,0.1866368,107160.0,107150.0,0.09894754]
[1760867028585,0.5266368,107160.0,107150.0,0.00050754]
[1760867028788,0.5266368,107160.0,107150.0,0.09894754]
[1760867029772,0.5266368,107160.0,107150.0,0.00050754]
[1760867029970,0.1866368,107160.0,107150.0,0.64158707]
[1760867030704,0.1866368,107160.0,107150.0,0.38001264]
[1760867030858,0.1866368,107160.0,107150.0,0.82824129]
[1760867031681,0.1866368,107160.0,107150.0,0.64158707]
[1760867031885,0.1866368,107160.0,107150.0,0.82824129]
[1760867032087,0.52824557,107170.0,107150.0,0.82824129]
[1760867032275,0.1866368,107160.0,107150.0,0.82824129]
[1760867032832,0.1866368,107160.0,107150.0,0.19335842]
[1760867033038,0.00162619,107170.0,107160.0,0.1866368]
[1760867033234,0.00162619,107170.0,107160.0,1.02705046]
[1760867033437,0.00162619,107170.0,107160.0,1.21368726]
[1760867033655,0.00162619,107170.0,107160.0,0.76545861]
[1760867033988,0.00162619,107170.0,107160.0,1.21368726]
[1760867034204,0.00162619,107170.0,107160.0,0.31722996]
[1760867034378,0.18658468,107190.0,107170.0,0.22279406]
[1760867034606,0.1882106,107190.0,107180.0,0.64099953]
[1760867034765,0.5282106,107190.0,107180.0,0.19277088]
[1760867035165,0.18660197,107180.0,107170.0,0.44822865]
[1760867035465,0.18660197,107180.0,107170.0,0.64099953]
[1760867036081,0.18660197,107180.0,107170.0,0.54263953]
[1760867036313,0.52660197,107180.0,107170.0,0.19269088]
[1760867036808,0.18661938,107170.0,107160.0,0.44822865]
[1760867036968,0.18661938,107170.0,107160.0,0.64091953]
[1760867037570,0.18661938,107170.0,107160.0,0.19269088]
[1760867037792,0.18661938,107170.0,107160.0,0.64091953]
[1760867037989,0.18661938,107170.0,107160.0,0.54263953]
[1760867038195,0.18661938,107170.0,107160.0,0.64087953]
[1760867040434,0.53593206,107180.0,107160.0,0.64087953]
[1760867040726,0.21892949,107200.0,107180.0,0.18660197]
[1760867040910,0.21892949,107200.0,107190.0,0.09441088]
[1760867041109,0.55892949,107200.0,107190.0,0.19253088]
[1760867041314,0.55892949,107200.0,107190.0,0.09441088]
[1760867041554,0.52658456,107190.0,107180.0,0.009]
[1760867041770,0.47658456,107190.0,107180.0,0.10712]
[1760867042177,0.47658456,107190.0,107180.0,0.10726937]
[1760867042384,0.47658456,107190.0,107180.0,0.00914937]
[1760867042585,0.47658456,107190.0,107180.0,0.10726937]
[1760867042919,0.47658456,107190.0,107180.0,0.00914937]
[1760867043141,0.47658456,107190.0,107180.0,0.10722937]
[1760867043761,0.47658456,107190.0,107180.0,0.00914937]
[1760867044014,0.47658456,107190.0,107180.0,0.10718937]
[1760867045373,0.47658456,107190.0,107180.0,0.00914937]
[1760867045585,0.47658456,107190.0,107180.0,0.10714937]
[1760867046616,0.47658456,107190.0,107180.0,0.10710937]
[1760867047480,0.47658456,107190.0,107180.0,0.10706937]
[1760867048055,0.47658456,107190.0,107180.0,0.00914937]
[1760867048258,0.47658456,107190.0,107180.0,0.10706937]
[1760867048462,0.47658456,107190.0,107180.0,0.00014937]
[1760867048692,0.47658456,107190.0,107180.0,0.09802937]
[1760867050545,0.47658456,107190.0,107180.0,0.54625802]
[1760867050974,0.47658456,107190.0,107180.0,0.6406689]
[1760867051189,0.52658456,107190.0,107180.0,0.82727087]
[1760867051340,0.21892949,107200.0,107180.0,0.83627087]
[1760867051552,0.21892949,107200.0,107190.0,0.54263953]
[1760867051802,0.21892949,107200.0,107190.0,1.17745274]
[1760867051803,0.02295303,107200.0,107190.0,1.17745274]
[1760867052001,0.18663249,107210.0,107190.0,1.17745274]
[1760867052333,0.18663249,107210.0,107200.0,0.54606865]
[1760867052541,0.18663249,107210.0,107200.0,0.19225088]
[1760867052684,0.18663249,107210.0,107200.0,0.64047953]
[1760867053643,0.20980632,107210.0,107200.0,0.64047953]
[1760867053847,0.20980632,107210.0,107200.0,0.19225088]
[1760867053988,0.21143203,107210.0,107200.0,0.64047953]
[1760867054821,0.2113493,107210.0,107200.0,0.64047953]
[1760867055953,0.18817547,107210.0,107200.0,0.64047953]
[1760867057236,0.18817547,107210.0,107200.0,0.19225088]
[1760867057436,0.18658456,107190.0,107180.0,0.00914937]
[1760867057640,0.18658456,107190.0,107180.0,0.5517889]
[1760867057845,0.18658456,107190.0,107180.0,0.20124025]
[1760867058468,0.18658456,107190.0,107180.0,0.6494689]
[1760867058685,0.18658456,107190.0,107180.0,0.10356025]
[1760867058915,0.18658456,107190.0,107180.0,0.6494289]
[1760867060073,0.18658456,107190.0,107180.0,0.6493889]
[1760867060476,0.20907677,107190.0,107180.0,0.6493889]
[1760867061699,0.20907677,107190.0,107180.0,0.20116025]
[1760867061901,0.20907677,107190.0,107180.0,0.6493889]
[1760867062327,0.20907677,107190.0,107180.0,0.00914937]
[1760867062328,0.54907677,107190.0,107180.0,0.00914937]
[1760867062720,0.54907677,107190.0,107180.0,0.02490937]
[1760867062921,0.54907677,107190.0,107180.0,0.00914937]
[1760867063266,0.54907677,107190.0,107180.0,0.10666937]
[1760867063441,0.54907677,107190.0,107180.0,0.00914937]
[1760867063686,0.54907677,107190.0,107180.0,0.05324483]
[1760867063924,0.54907677,107190.0,107180.0,0.59588436]
[1760867064133,0.20907677,107190.0,107180.0,0.59588436]
[1760867064306,0.20907677,107190.0,107180.0,0.81866861]
[1760867064855,0.02249221,107190.0,107180.0,0.81866861]
[1760867065060,0.18658456,107190.0,107180.0,0.37043996]
[1760867065269,0.18658456,107190.0,107180.0,0.63206664]
[1760867066265,0.18658456,107190.0,107180.0,0.18383799]
[1760867066464,0.18658456,107190.0,107180.0,0.86286378]
[1760867067355,0.20891129,107190.0,107180.0,0.86286378]
[1760867068199,0.20891129,107190.0,107180.0,0.67626181]
[1760867068400,0.20891129,107190.0,107180.0,0.13059316]
[1760867068601,0.20891129,107190.0,107180.0,0.67622181]
[1760867069221,0.20891129,107190.0,107180.0,0.22799316]
[1760867069365,0.20891129,107190.0,107180.0,0.86282378]
[1760867069578,0.20891129,107190.0,107180.0,0.67618181]
[1760867069779,0.20891129,107190.0,107180.0,0.57882181]
[1760867069980,0.20891129,107190.0,107180.0,0.67614181]
[1760867070651,0.20891129,107190.0,107180.0,0.57882181]
[1760867070952,0.20891129,107190.0,107180.0,0.67614181]
[1760867071542,0.20891129,107190.0,107180.0,0.67610181]
[1760867071681,0.20891129,107190.0,107180.0,0.13059316]
[1760867071887,0.20891129,107190.0,107180.0,0.22787316]
[1760867072348,0.20891129,107190.0,107180.0,0.13059316]
[1760867072689,0.20891129,107190.0,107180.0,0.22787316]
[1760867072893,0.20891129,107190.0,107180.0,0.57882181]
[1760867073098,0.20891129,107190.0,107180.0,0.67610181]
[1760867074193,0.20891129,107190.0,107180.0,0.57882181]
[1760867074386,0.20891129,107190.0,107180.0,0.67606181]
[1760867074688,0.18663409,107170.0,107160.0,0.44822865]
[1760867074888,0.17144915,107170.0,107160.0,0.54278943]
[1760867075091,0.17144915,107170.0,107160.0,0.63998943]
[1760867075325,0.17144915,107170.0,107160.0,0.67617171]
[1760867075744,0.17144915,107170.0,107160.0,0.13074306]
[1760867075947,0.17144915,107170.0,107160.0,0.19176078]
[1760867076531,0.17144915,107170.0,107160.0,0.54278943]
[1760867076762,0.17144915,107170.0,107160.0,0.19172078]
[1760867077791,0.51144915,107170.0,107160.0,0.19172078]
[1760867078339,0.51144915,107170.0,107160.0,0.09456078]
[1760867078767,0.51144915,107170.0,107160.0,0.19168078]
[1760867080611,0.51144915,107170.0,107160.0,0.63990943]
[1760867080833,0.51144915,107170.0,107160.0,0.09456078]
[1760867080973,0.51144915,107170.0,107160.0,0.0972299]